[Event "*** MasterClass Titled Tuesday Blitz"]
[Site "Chess.com"]
[Date "2017.09.05"]
[Round "6"]
[White "PlotnikovPavel"]
[Black "IamSchrodingersCat"]
[Result "0-1"]
[WhiteElo "2459"]
[BlackElo "2441"]
[TimeControl "180+2"]
[EndTime "14:26:20 PDT"]
[Termination "IamSchrodingersCat won by resignation"]

1. Nf3 {[%clk 0:03:01.9]} 1... Nf6 {[%clk 0:02:59.4]} 2. c4 {[%clk 0:03:02.6]}
2... g6 {[%clk 0:02:59.8]} 3. e3 {[%clk 0:03:02.4]} 3... Bg7 {[%clk 0:03:01.1]}
4. d4 {[%clk 0:03:03.3]} 4... O-O {[%clk 0:03:02.5]} 5. Be2 {[%clk 0:03:03.5]}
5... d6 {[%clk 0:03:04]} 6. O-O {[%clk 0:03:04.1]} 6... Nbd7 {[%clk 0:03:05.6]}
7. b4 {[%clk 0:03:01.7]} 7... e5 {[%clk 0:03:06.7]} 8. Bb2 {[%clk 0:03:02.5]}
8... e4 {[%clk 0:03:07.3]} 9. Nfd2 {[%clk 0:03:03]} 9... Re8 {[%clk 0:03:08.8]}
10. a4 {[%clk 0:02:59.3]} 10... h5 {[%clk 0:03:09]} 11. Nc3 {[%clk 0:02:56.9]}
11... Nf8 {[%clk 0:03:09.9]} 12. Qb3 {[%clk 0:02:52]} 12... N8h7 {[%clk
0:03:03.8]} 13. Rae1 {[%clk 0:02:52.6]} 13... Bf5 {[%clk 0:02:56.9]} 14. Nd1
{[%clk 0:02:41.9]} 14... Ng4 {[%clk 0:02:50.9]} 15. h3 {[%clk 0:02:26.9]} 15...
Qh4 {[%clk 0:02:50]} 16. f3 {[%clk 0:01:57.4]} 16... Ng5 {[%clk 0:02:34.5]} 17.
fxg4 {[%clk 0:01:54.2]} 17... Nxh3+ {[%clk 0:02:21.3]} 18. gxh3 {[%clk
0:01:53.6]} 18... Qg3+ {[%clk 0:02:20.9]} 19. Kh1 {[%clk 0:01:54.3]} 19... Qxh3+
{[%clk 0:02:22.8]} 20. Kg1 {[%clk 0:01:55.6]} 20... Qg3+ {[%clk 0:02:24.1]} 21.
Kh1 {[%clk 0:01:56.7]} 21... hxg4 {[%clk 0:00:43.2]} 22. Rf2 {[%clk 0:01:56.6]}
22... Qh4+ {[%clk 0:00:23.9]} 23. Rh2 {[%clk 0:01:55.8]} 23... Qxe1+ {[%clk
0:00:23.2]} 24. Bf1 {[%clk 0:01:52.5]} 24... g3 {[%clk 0:00:19.6]} 25. Rg2
{[%clk 0:01:51.2]} 25... Bh3 {[%clk 0:00:18.8]} 26. Re2 {[%clk 0:01:37.6]} 26...
g2+ {[%clk 0:00:18]} 27. Rxg2 {[%clk 0:01:37.7]} 27... Bxg2+ {[%clk 0:00:19.4]}
28. Kxg2 {[%clk 0:01:38.3]} 28... Qxd2+ {[%clk 0:00:20.1]} 29. Nf2 {[%clk
0:01:39.5]} 29... Bf6 {[%clk 0:00:16.7]} 30. Bc3 {[%clk 0:01:40]} 30... Qxe3
{[%clk 0:00:15.8]} 31. Ng4 {[%clk 0:01:40]} 31... Qf3+ {[%clk 0:00:16.4]} 0-1

[Event "*** MasterClass Titled Tuesday Blitz"]
[Site "Chess.com"]
[Date "2017.09.05"]
[Round "6"]
[White "Saitama_Hero"]
[Black "TomsKantans"]
[Result "0-1"]
[WhiteElo "2329"]
[BlackElo "2420"]
[TimeControl "180+2"]
[EndTime "14:26:22 PDT"]
[Termination "TomsKantans won by resignation"]

1. d4 {[%clk 0:03:01.9]} 1... Nf6 {[%clk 0:02:53.6]} 2. c4 {[%clk 0:03:03.1]}
2... g6 {[%clk 0:02:53.9]} 3. Nc3 {[%clk 0:03:04]} 3... d5 {[%clk 0:02:55.4]} 4.
Nf3 {[%clk 0:02:57.7]} 4... Bg7 {[%clk 0:02:55.9]} 5. Qb3 {[%clk 0:02:58.8]}
5... dxc4 {[%clk 0:02:55.2]} 6. Qxc4 {[%clk 0:03:00.3]} 6... O-O {[%clk
0:02:56.7]} 7. e4 {[%clk 0:03:01]} 7... Na6 {[%clk 0:02:58]} 8. Be2 {[%clk
0:02:59.8]} 8... c5 {[%clk 0:02:59.5]} 9. d5 {[%clk 0:03:00.1]} 9... e6 {[%clk
0:03:01.1]} 10. O-O {[%clk 0:02:59.1]} 10... exd5 {[%clk 0:03:02.4]} 11. exd5
{[%clk 0:02:59.2]} 11... Re8 {[%clk 0:03:04]} 12. Rd1 {[%clk 0:02:55]} 12... Bf5
{[%clk 0:02:55.1]} 13. Bf4 {[%clk 0:02:48]} 13... Ne4 {[%clk 0:02:43.9]} 14. Nb5
{[%clk 0:02:46.7]} 14... Bxb2 {[%clk 0:01:58.4]} 15. Rab1 {[%clk 0:02:45.5]}
15... Bg7 {[%clk 0:01:51.6]} 16. d6 {[%clk 0:02:45.2]} 16... Bd7 {[%clk
0:01:31.5]} 17. Nc7 {[%clk 0:02:36.5]} 17... Nc3 {[%clk 0:01:30.1]} 18. Nxe8
{[%clk 0:01:52.3]} 18... Qxe8 {[%clk 0:00:56.3]} 19. Bd3 {[%clk 0:01:53.5]}
19... b5 {[%clk 0:00:46.7]} 20. Qb3 {[%clk 0:01:44.3]} 20... c4 {[%clk
0:00:31.8]} 21. Qa3 {[%clk 0:01:45.5]} 21... cxd3 {[%clk 0:00:26.6]} 22. Qxa6
{[%clk 0:01:46.4]} 22... Ne2+ {[%clk 0:00:22.7]} 23. Kh1 {[%clk 0:01:43.4]}
23... Nxf4 {[%clk 0:00:24.2]} 24. Re1 {[%clk 0:01:37.3]} 24... Qc8 {[%clk
0:00:24.9]} 25. Qa3 {[%clk 0:01:28.7]} 25... Qc3 {[%clk 0:00:22.4]} 26. Rb3
{[%clk 0:01:17.6]} 26... Qc6 {[%clk 0:00:23.2]} 27. Rc3 {[%clk 0:01:14.3]} 27...
Qxc3 {[%clk 0:00:22.7]} 0-1

[Event "*** MasterClass Titled Tuesday Blitz"]
[Site "Chess.com"]
[Date "2017.09.05"]
[Round "6"]
[White "chessking2151"]
[Black "Adham_Fawzy"]
[Result "0-1"]
[WhiteElo "2332"]
[BlackElo "2389"]
[TimeControl "180+2"]
[EndTime "14:27:26 PDT"]
[Termination "Adham_Fawzy won by resignation"]

1. e4 {[%clk 0:03:01.9]} 1... c5 {[%clk 0:03:00.8]} 2. Nf3 {[%clk 0:03:03.1]}
2... Nc6 {[%clk 0:03:01.6]} 3. Bb5 {[%clk 0:03:02.5]} 3... g6 {[%clk 0:03:01.8]}
4. Bxc6 {[%clk 0:03:03.7]} 4... dxc6 {[%clk 0:03:03.7]} 5. d3 {[%clk 0:03:04.9]}
5... Bg7 {[%clk 0:03:04.6]} 6. h3 {[%clk 0:03:06.2]} 6... Nf6 {[%clk 0:03:05.1]}
7. a4 {[%clk 0:02:59.2]} 7... a5 {[%clk 0:03:04.9]} 8. Na3 {[%clk 0:02:57.2]}
8... Nd7 {[%clk 0:03:04.9]} 9. Nc4 {[%clk 0:02:44.7]} 9... b5 {[%clk 0:02:43]}
10. Na3 {[%clk 0:02:36.9]} 10... Rb8 {[%clk 0:02:43.1]} 11. O-O {[%clk 0:02:34]}
11... O-O {[%clk 0:02:43.3]} 12. Bf4 {[%clk 0:02:26.1]} 12... Rb6 {[%clk
0:02:18.8]} 13. c3 {[%clk 0:02:24.5]} 13... Ba6 {[%clk 0:02:16.8]} 14. Nd2
{[%clk 0:02:07.5]} 14... Ne5 {[%clk 0:02:04.4]} 15. Bxe5 {[%clk 0:01:57.2]}
15... Bxe5 {[%clk 0:02:06.3]} 16. Nb3 {[%clk 0:01:42.7]} 16... c4 {[%clk
0:01:37.4]} 17. dxc4 {[%clk 0:01:35.2]} 17... b4 {[%clk 0:01:37.7]} 18. Qxd8
{[%clk 0:00:52]} 18... Rxd8 {[%clk 0:01:36.7]} 19. Nxa5 {[%clk 0:00:31.5]} 19...
bxa3 {[%clk 0:01:33]} 20. c5 {[%clk 0:00:32.3]} 20... axb2 {[%clk 0:01:25.1]}
21. Rab1 {[%clk 0:00:32.4]} 21... Rbb8 {[%clk 0:01:24.4]} 22. Nxc6 {[%clk
0:00:31.5]} 22... Bxf1 {[%clk 0:01:24.8]} 23. Kxf1 {[%clk 0:00:31.7]} 23... Bxc3
{[%clk 0:01:16.8]} 24. Nxd8 {[%clk 0:00:16.6]} 24... Rxd8 {[%clk 0:01:16.2]} 25.
Ke2 {[%clk 0:00:18.1]} 25... e5 {[%clk 0:01:11.6]} 26. a5 {[%clk 0:00:17.3]}
26... Ra8 {[%clk 0:01:09]} 27. Kd3 {[%clk 0:00:18.6]} 27... Bd4 {[%clk
0:01:09.5]} 28. f4 {[%clk 0:00:19.3]} 28... f6 {[%clk 0:01:04.2]} 29. fxe5
{[%clk 0:00:19.3]} 29... fxe5 {[%clk 0:01:04.6]} 30. Kc4 {[%clk 0:00:09.5]}
30... Rxa5 {[%clk 0:01:04.8]} 31. Kb4 {[%clk 0:00:10.1]} 31... Rxc5 {[%clk
0:01:03]} 32. Rxb2 {[%clk 0:00:11.5]} 32... Bxb2 {[%clk 0:01:03.3]} 33. Kxc5
{[%clk 0:00:13]} 33... Kf7 {[%clk 0:01:04.3]} 34. Kc4 {[%clk 0:00:15]} 34... Ke6
{[%clk 0:01:04.7]} 35. Kd3 {[%clk 0:00:17]} 35... Bd4 {[%clk 0:01:05.9]} 36. Ke2
{[%clk 0:00:18.1]} 36... h5 {[%clk 0:01:06.9]} 37. Kf3 {[%clk 0:00:20.1]} 37...
g5 {[%clk 0:01:07.9]} 38. Kg3 {[%clk 0:00:21.7]} 38... Kd6 {[%clk 0:01:08.5]}
39. Kf3 {[%clk 0:00:23.7]} 39... Kc5 {[%clk 0:01:09.4]} 40. g3 {[%clk
0:00:25.7]} 40... Kb4 {[%clk 0:01:10.4]} 41. g4 {[%clk 0:00:27.7]} 41... h4
{[%clk 0:01:11.1]} 42. Ke2 {[%clk 0:00:28.5]} 42... Kc3 {[%clk 0:01:12.5]} 43.
Kf3 {[%clk 0:00:30.5]} 43... Kd3 {[%clk 0:01:13.8]} 44. Kg2 {[%clk 0:00:32.4]}
44... Kxe4 {[%clk 0:01:15.3]} 45. Kf1 {[%clk 0:00:34.1]} 45... Kf3 {[%clk
0:01:16.3]} 46. Ke1 {[%clk 0:00:35.7]} 46... e4 {[%clk 0:01:16.4]} 47. Kd1
{[%clk 0:00:37.7]} 47... e3 {[%clk 0:01:17.2]} 0-1

[Event "*** MasterClass Titled Tuesday Blitz"]
[Site "Chess.com"]
[Date "2017.09.05"]
[Round "6"]
[White "JSPrepz"]
[Black "fastestmindalive"]
[Result "1-0"]
[WhiteElo "2471"]
[BlackElo "2601"]
[TimeControl "180+2"]
[EndTime "14:27:27 PDT"]
[Termination "JSPrepz won by resignation"]

1. c4 {[%clk 0:03:01.9]} 1... Nf6 {[%clk 0:02:56.6]} 2. g3 {[%clk 0:03:02.2]}
2... g6 {[%clk 0:02:55.8]} 3. Bg2 {[%clk 0:03:03.4]} 3... Bg7 {[%clk 0:02:57.7]}
4. Nf3 {[%clk 0:03:05.3]} 4... O-O {[%clk 0:02:59.6]} 5. d4 {[%clk 0:03:06.7]}
5... d6 {[%clk 0:03:01.5]} 6. O-O {[%clk 0:03:07.8]} 6... c5 {[%clk 0:03:02.6]}
7. dxc5 {[%clk 0:03:06.9]} 7... dxc5 {[%clk 0:03:02.4]} 8. Ne5 {[%clk
0:03:08.6]} 8... Nfd7 {[%clk 0:02:58.1]} 9. Nd3 {[%clk 0:03:08.2]} 9... Qb6
{[%clk 0:02:54.3]} 10. Nc3 {[%clk 0:03:00.8]} 10... Nc6 {[%clk 0:02:55]} 11. Nd5
{[%clk 0:03:01.3]} 11... Qd8 {[%clk 0:02:56.1]} 12. Be3 {[%clk 0:03:01.6]} 12...
e6 {[%clk 0:02:55.8]} 13. Nc3 {[%clk 0:03:02.9]} 13... Qe7 {[%clk 0:02:54.3]}
14. Rb1 {[%clk 0:02:59.5]} 14... Nd4 {[%clk 0:02:51.6]} 15. b4 {[%clk
0:02:53.3]} 15... cxb4 {[%clk 0:02:50]} 16. Nxb4 {[%clk 0:02:54.4]} 16... Nf5
{[%clk 0:02:50.3]} 17. Bd2 {[%clk 0:02:53.3]} 17... Ne5 {[%clk 0:02:50.9]} 18.
Qc1 {[%clk 0:02:32.8]} 18... Nxc4 {[%clk 0:02:48.8]} 19. Bg5 {[%clk 0:02:30]}
19... Qe8 {[%clk 0:02:35.2]} 20. Ne4 {[%clk 0:02:29.2]} 20... Ne5 {[%clk
0:02:09.5]} 21. Nf6+ {[%clk 0:02:29.7]} 21... Bxf6 {[%clk 0:02:10.5]} 22. Bxf6
{[%clk 0:02:31.6]} 22... Nd7 {[%clk 0:02:11.7]} 23. Ba1 {[%clk 0:02:28.9]} 23...
f6 {[%clk 0:02:12.6]} 24. Rd1 {[%clk 0:02:28.8]} 24... a5 {[%clk 0:02:11.1]} 25.
Nd3 {[%clk 0:02:29.3]} 25... Rb8 {[%clk 0:02:09]} 26. Nf4 {[%clk 0:02:28.2]}
26... Ne5 {[%clk 0:02:00.2]} 27. Qc7 {[%clk 0:02:20]} 27... Bd7 {[%clk
0:01:56.8]} 28. Bxe5 {[%clk 0:02:20.8]} 28... fxe5 {[%clk 0:01:57.6]} 29. Rxd7
{[%clk 0:02:10.5]} 29... exf4 {[%clk 0:01:57]} 30. g4 {[%clk 0:02:08.8]} 30...
Rc8 {[%clk 0:01:48.8]} 31. Qxb7 {[%clk 0:02:07.3]} 31... Rb8 {[%clk 0:01:49.9]}
32. Qxb8 {[%clk 0:01:14.7]} 32... Qxd7 {[%clk 0:01:50.5]} 33. Qe5 {[%clk
0:01:08.6]} 33... Nh6 {[%clk 0:00:26]} 34. Rb7 {[%clk 0:00:58.8]} 34... Nxg4
{[%clk 0:00:27.2]} 35. Qa1 {[%clk 0:00:55.9]} 35... Rd8 {[%clk 0:00:16.7]} 36.
Rxd7 {[%clk 0:00:55.6]} 36... Rxd7 {[%clk 0:00:18.6]} 37. Bh3 {[%clk 0:00:52.5]}
37... h6 {[%clk 0:00:16.7]} 38. Bxg4 {[%clk 0:00:53.5]} 1-0

[Event "*** MasterClass Titled Tuesday Blitz"]
[Site "Chess.com"]
[Date "2017.09.05"]
[Round "6"]
[White "r31415"]
[Black "ditkin25"]
[Result "0-1"]
[WhiteElo "2162"]
[BlackElo "2232"]
[TimeControl "180+2"]
[EndTime "14:27:39 PDT"]
[Termination "ditkin25 won by resignation"]

1. e4 {[%clk 0:03:00.8]} 1... c5 {[%clk 0:02:59.5]} 2. Nf3 {[%clk 0:03:01.4]}
2... d6 {[%clk 0:03:00.6]} 3. d4 {[%clk 0:03:03]} 3... Nf6 {[%clk 0:03:02]} 4.
Nc3 {[%clk 0:03:03.2]} 4... cxd4 {[%clk 0:03:03.2]} 5. Nxd4 {[%clk 0:03:05.1]}
5... Nc6 {[%clk 0:03:04.4]} 6. h3 {[%clk 0:03:04.2]} 6... e6 {[%clk 0:02:52.5]}
7. g4 {[%clk 0:03:03.2]} 7... h6 {[%clk 0:02:52.6]} 8. Bg2 {[%clk 0:03:01.7]}
8... Be7 {[%clk 0:02:51]} 9. Be3 {[%clk 0:03:01.9]} 9... a6 {[%clk 0:02:49.1]}
10. O-O {[%clk 0:03:02.2]} 10... g5 {[%clk 0:02:38.7]} 11. Nxc6 {[%clk
0:02:38.8]} 11... bxc6 {[%clk 0:02:40.6]} 12. e5 {[%clk 0:02:40.2]} 12... Nd5
{[%clk 0:02:40.3]} 13. exd6 {[%clk 0:02:39.7]} 13... Bxd6 {[%clk 0:02:33.7]} 14.
Bd4 {[%clk 0:02:37.1]} 14... Rg8 {[%clk 0:02:23.1]} 15. Ne4 {[%clk 0:02:33.3]}
15... Be7 {[%clk 0:02:23.9]} 16. c4 {[%clk 0:02:24.8]} 16... Nf4 {[%clk
0:02:22.2]} 17. Nf6+ {[%clk 0:02:06]} 17... Bxf6 {[%clk 0:02:05.4]} 18. Bxc6+
{[%clk 0:01:48.3]} 18... Bd7 {[%clk 0:01:11.1]} 19. Bxf6 {[%clk 0:01:45.4]}
19... Nxh3+ {[%clk 0:01:12]} 20. Kh2 {[%clk 0:01:37.1]} 20... Qc7+ {[%clk
0:01:12.6]} 21. Kxh3 {[%clk 0:01:28.5]} 21... Bxc6 {[%clk 0:01:13]} 22. Qd4
{[%clk 0:01:00.2]} 22... h5 {[%clk 0:00:59.7]} 23. f3 {[%clk 0:00:33.1]} 23...
hxg4+ {[%clk 0:00:56]} 24. Kxg4 {[%clk 0:00:28.9]} 24... Qh2 {[%clk 0:00:45.8]}
25. Qf2 {[%clk 0:00:06.6]} 25... Qf4+ {[%clk 0:00:41.7]} 26. Kh3 {[%clk
0:00:07.7]} 26... Qxf6 {[%clk 0:00:27.1]} 27. Qb6 {[%clk 0:00:08.4]} 27... Rh8+
{[%clk 0:00:21.2]} 28. Kg2 {[%clk 0:00:09]} 28... e5 {[%clk 0:00:20.4]} 29. Rae1
{[%clk 0:00:05.3]} 29... Rc8 {[%clk 0:00:20.9]} 30. Qc5 {[%clk 0:00:05.1]} 30...
Bxf3+ {[%clk 0:00:19.6]} 31. Rxf3 {[%clk 0:00:06.3]} 31... Qxf3+ {[%clk
0:00:20.4]} 32. Kxf3 {[%clk 0:00:08.2]} 32... Rxc5 {[%clk 0:00:21.7]} 0-1

[Event "*** MasterClass Titled Tuesday Blitz"]
[Site "Chess.com"]
[Date "2017.09.05"]
[Round "6"]
[White "MartinMatthiesen"]
[Black "mwpchess"]
[Result "1-0"]
[WhiteElo "2319"]
[BlackElo "2445"]
[TimeControl "180+2"]
[EndTime "14:27:44 PDT"]
[Termination "MartinMatthiesen won by resignation"]

1. d4 {[%clk 0:02:55]} 1... Nf6 {[%clk 0:02:59.7]} 2. c4 {[%clk 0:02:55.5]} 2...
e6 {[%clk 0:03:00.9]} 3. Nc3 {[%clk 0:02:55.8]} 3... Bb4 {[%clk 0:03:00.9]} 4.
g3 {[%clk 0:02:56.1]} 4... O-O {[%clk 0:03:00]} 5. Bg2 {[%clk 0:02:55.9]} 5...
d5 {[%clk 0:03:01]} 6. Nf3 {[%clk 0:02:56]} 6... dxc4 {[%clk 0:03:00.6]} 7. O-O
{[%clk 0:02:50.5]} 7... Nc6 {[%clk 0:03:00.6]} 8. a3 {[%clk 0:02:39.2]} 8... Be7
{[%clk 0:03:01.3]} 9. e3 {[%clk 0:02:36.7]} 9... a6 {[%clk 0:02:27.7]} 10. Qe2
{[%clk 0:02:26.4]} 10... Na5 {[%clk 0:02:25.8]} 11. Ne5 {[%clk 0:02:27.3]} 11...
Rb8 {[%clk 0:02:17.2]} 12. Nxc4 {[%clk 0:02:26.1]} 12... Nb3 {[%clk 0:02:17.8]}
13. Rb1 {[%clk 0:02:26.7]} 13... Nxc1 {[%clk 0:02:18.5]} 14. Rfxc1 {[%clk
0:02:24.5]} 14... c5 {[%clk 0:02:09.8]} 15. dxc5 {[%clk 0:02:22.8]} 15... Bxc5
{[%clk 0:02:09.7]} 16. b4 {[%clk 0:02:23.5]} 16... Ba7 {[%clk 0:02:04.9]} 17.
Na5 {[%clk 0:02:19.7]} 17... Bb6 {[%clk 0:02:02.4]} 18. Nc4 {[%clk 0:02:16.6]}
18... Bc7 {[%clk 0:01:58.9]} 19. b5 {[%clk 0:02:05.2]} 19... axb5 {[%clk
0:01:55.1]} 20. Nxb5 {[%clk 0:02:05.1]} 20... Bd7 {[%clk 0:01:22.7]} 21. Nxc7
{[%clk 0:01:51.6]} 21... Qxc7 {[%clk 0:01:22.2]} 22. Qb2 {[%clk 0:01:52.5]}
22... b5 {[%clk 0:01:01.3]} 23. Ne5 {[%clk 0:01:50.5]} 23... Qa7 {[%clk
0:01:00.4]} 24. Bc6 {[%clk 0:01:31.1]} 24... Rb6 {[%clk 0:00:47.3]} 25. Nxd7
{[%clk 0:01:17.5]} 25... Nxd7 {[%clk 0:00:47.4]} 26. Bxb5 {[%clk 0:01:18.2]}
26... Qb7 {[%clk 0:00:34.2]} 27. a4 {[%clk 0:01:14.8]} 27... Qe4 {[%clk
0:00:15.5]} 28. Qc2 {[%clk 0:01:09.9]} 28... Qxc2 {[%clk 0:00:13.4]} 29. Rxc2
{[%clk 0:01:10.6]} 29... Ne5 {[%clk 0:00:14.3]} 30. a5 {[%clk 0:01:03.5]} 30...
Rb7 {[%clk 0:00:11.7]} 31. a6 {[%clk 0:01:03.4]} 31... Ra7 {[%clk 0:00:12.2]}
32. f4 {[%clk 0:00:56.9]} 32... Ng6 {[%clk 0:00:12.1]} 33. Bf1 {[%clk 0:00:55]}
33... Ne7 {[%clk 0:00:12.2]} 34. Rb7 {[%clk 0:00:54.3]} 34... Rfa8 {[%clk
0:00:11.2]} 35. Rcc7 {[%clk 0:00:53]} 1-0

[Event "*** MasterClass Titled Tuesday Blitz"]
[Site "Chess.com"]
[Date "2017.09.05"]
[Round "6"]
[White "gmcorrales"]
[Black "Yaacovn"]
[Result "0-1"]
[WhiteElo "2667"]
[BlackElo "2642"]
[TimeControl "180+2"]
[EndTime "14:27:59 PDT"]
[Termination "Yaacovn won by checkmate"]

1. e4 {[%clk 0:02:31.7]} 1... c6 {[%clk 0:02:59.8]} 2. d4 {[%clk 0:02:18]} 2...
d5 {[%clk 0:02:58.4]} 3. e5 {[%clk 0:02:19.4]} 3... Bf5 {[%clk 0:02:58.6]} 4.
Nf3 {[%clk 0:02:20.5]} 4... e6 {[%clk 0:02:57.6]} 5. Be2 {[%clk 0:02:06.1]} 5...
Ne7 {[%clk 0:02:58.1]} 6. O-O {[%clk 0:02:05.3]} 6... Bg6 {[%clk 0:02:58.4]} 7.
Nbd2 {[%clk 0:02:04.5]} 7... Nf5 {[%clk 0:02:58.1]} 8. a4 {[%clk 0:02:04.1]}
8... a6 {[%clk 0:02:58.3]} 9. Nb3 {[%clk 0:02:04.5]} 9... Nd7 {[%clk 0:02:58.3]}
10. a5 {[%clk 0:02:04.9]} 10... c5 {[%clk 0:02:58.9]} 11. c4 {[%clk 0:02:04.8]}
11... dxc4 {[%clk 0:02:58.9]} 12. Bxc4 {[%clk 0:02:06.7]} 12... cxd4 {[%clk
0:02:59.1]} 13. Nbxd4 {[%clk 0:01:55.7]} 13... Rc8 {[%clk 0:02:58.9]} 14. b3
{[%clk 0:01:55.1]} 14... Nxd4 {[%clk 0:02:58.1]} 15. Qxd4 {[%clk 0:01:57]} 15...
Bh5 {[%clk 0:02:40.1]} 16. Ng5 {[%clk 0:01:43.4]} 16... Bc5 {[%clk 0:02:26.9]}
17. Qe4 {[%clk 0:01:30.4]} 17... Be7 {[%clk 0:01:49.3]} 18. Bxe6 {[%clk
0:00:53.2]} 18... Nc5 {[%clk 0:01:28.6]} 19. Bxf7+ {[%clk 0:00:49.7]} 19... Bxf7
{[%clk 0:01:27.8]} 20. Qg4 {[%clk 0:00:48.4]} 20... O-O {[%clk 0:01:13.8]} 21.
Nxf7 {[%clk 0:00:43]} 21... Rxf7 {[%clk 0:01:11.8]} 22. Ba3 {[%clk 0:00:44]}
22... Qf8 {[%clk 0:00:56.7]} 23. Rac1 {[%clk 0:00:42.2]} 23... Rc6 {[%clk
0:00:41.8]} 24. e6 {[%clk 0:00:12]} 24... Rf6 {[%clk 0:00:38.5]} 25. Bb2 {[%clk
0:00:12.9]} 25... Rf4 {[%clk 0:00:30.4]} 26. Qg3 {[%clk 0:00:13.4]} 26... Ne4
{[%clk 0:00:29.8]} 27. Qd3 {[%clk 0:00:10.5]} 27... Nxf2 {[%clk 0:00:27.2]} 28.
Qd7 {[%clk 0:00:06.9]} 28... Bc5 {[%clk 0:00:11.3]} 29. Bxg7 {[%clk 0:00:03.8]}
29... Ng4+ {[%clk 0:00:07.3]} 30. Kh1 {[%clk 0:00:04.2]} 30... Rxf1+ {[%clk
0:00:07.6]} 31. Rxf1 {[%clk 0:00:04.6]} 31... Qxf1# {[%clk 0:00:07.7]} 0-1

[Event "*** MasterClass Titled Tuesday Blitz"]
[Site "Chess.com"]
[Date "2017.09.05"]
[Round "6"]
[White "Peroncio"]
[Black "josiwales"]
[Result "0-1"]
[WhiteElo "2407"]
[BlackElo "2330"]
[TimeControl "180+2"]
[EndTime "14:28:05 PDT"]
[Termination "josiwales won by resignation"]

1. e4 {[%clk 0:03:01.9]} 1... c5 {[%clk 0:03:00.1]} 2. Nf3 {[%clk 0:03:02.9]}
2... Nc6 {[%clk 0:03:01.3]} 3. d4 {[%clk 0:03:03.7]} 3... cxd4 {[%clk
0:03:03.3]} 4. Nxd4 {[%clk 0:03:04.8]} 4... Nf6 {[%clk 0:03:04.8]} 5. Nc3 {[%clk
0:03:05.9]} 5... e5 {[%clk 0:03:05.8]} 6. Ndb5 {[%clk 0:03:07.5]} 6... d6 {[%clk
0:03:06.2]} 7. Bg5 {[%clk 0:03:08.7]} 7... a6 {[%clk 0:03:05.6]} 8. Na3 {[%clk
0:03:10.2]} 8... b5 {[%clk 0:03:06.1]} 9. Nd5 {[%clk 0:03:11.8]} 9... Be7 {[%clk
0:03:07.3]} 10. Bxf6 {[%clk 0:03:13.1]} 10... Bxf6 {[%clk 0:03:08.3]} 11. c3
{[%clk 0:03:14.7]} 11... Ne7 {[%clk 0:03:06.3]} 12. Nxe7 {[%clk 0:02:56.9]}
12... Qxe7 {[%clk 0:03:02.5]} 13. Nc2 {[%clk 0:02:50.1]} 13... Bb7 {[%clk
0:03:01.8]} 14. Qd3 {[%clk 0:02:36]} 14... O-O {[%clk 0:02:44.2]} 15. Be2 {[%clk
0:02:33.9]} 15... Rfd8 {[%clk 0:02:38.5]} 16. Ne3 {[%clk 0:02:34.4]} 16... Bg5
{[%clk 0:02:35.3]} 17. Nd5 {[%clk 0:02:35.2]} 17... Qe6 {[%clk 0:01:54.2]} 18.
Nc7 {[%clk 0:02:31.3]} 18... Qg6 {[%clk 0:01:54.2]} 19. Bf3 {[%clk 0:02:17.9]}
19... d5 {[%clk 0:01:46]} 20. Qe2 {[%clk 0:01:58.6]} 20... dxe4 {[%clk
0:01:23.1]} 21. Bh5 {[%clk 0:01:59.1]} 21... Qf6 {[%clk 0:01:11.7]} 22. Nxa8
{[%clk 0:01:29]} 22... Rd2 {[%clk 0:01:04.1]} 23. Qxd2 {[%clk 0:01:14]} 23...
Bxd2+ {[%clk 0:01:01.8]} 24. Kxd2 {[%clk 0:01:15.9]} 24... Bxa8 {[%clk
0:00:28.6]} 25. Be2 {[%clk 0:01:13.6]} 25... Qxf2 {[%clk 0:00:23.7]} 26. Rhg1
{[%clk 0:00:54.8]} 26... Qf4+ {[%clk 0:00:23.8]} 27. Kc2 {[%clk 0:00:42.9]}
27... e3 {[%clk 0:00:23.1]} 28. Rad1 {[%clk 0:00:39.3]} 28... g6 {[%clk
0:00:21]} 29. Kc1 {[%clk 0:00:23.5]} 29... Kg7 {[%clk 0:00:21.6]} 30. g3 {[%clk
0:00:18.7]} 30... Qa4 {[%clk 0:00:22.7]} 31. Bd3 {[%clk 0:00:13.4]} 31... Qxa2
{[%clk 0:00:21.3]} 32. Rge1 {[%clk 0:00:14.4]} 32... Qa1+ {[%clk 0:00:19.9]} 33.
Kc2 {[%clk 0:00:14.6]} 33... Qa4+ {[%clk 0:00:19.8]} 34. Kb1 {[%clk 0:00:14.3]}
34... Be4 {[%clk 0:00:18.5]} 35. Kc1 {[%clk 0:00:08.8]} 35... Bxd3 {[%clk
0:00:18]} 36. Rxd3 {[%clk 0:00:07.9]} 36... Qa1+ {[%clk 0:00:19.3]} 37. Kc2
{[%clk 0:00:09.3]} 37... Qxe1 {[%clk 0:00:21.3]} 38. Rxe3 {[%clk 0:00:11.2]}
38... Qxe3 {[%clk 0:00:22.4]} 0-1